bitfinex/quotes_BTCUSD_20250108
["timestamp","ask_amount","ask_price","bid_price","bid_amount"]
[1736305726529,0.523827,96727.0,96726.0,0.00137075]
[1736305726734,0.170782,96727.0,96726.0,0.00137075]
[1736305726948,0.523047,96729.0,96726.0,0.00137075]
[1736305727153,0.00129235,96728.0,96722.0,0.09840516]
[1736305727394,0.225975,96727.0,96722.0,0.09840516]
[1736305727570,0.00129235,96726.0,96722.0,0.09840516]
[1736305727797,0.225975,96725.0,96722.0,0.09840516]
[1736305728275,0.206763,96729.0,96722.0,0.09840516]
[1736305728516,0.20678,96722.0,96705.0,0.206813]
[1736305728727,0.70354042,96721.0,96709.0,0.12222531]
[1736305728929,0.486225,96720.0,96709.0,0.12222531]
[1736305729103,0.00129247,96719.0,96709.0,0.12222531]
[1736305729339,0.393757,96718.0,96710.0,0.01008378]
[1736305729513,0.206769,96726.0,96711.0,0.13294662]
[1736305729775,0.206773,96724.0,96711.0,0.13294662]
[1736305729927,0.23779,96723.0,96711.0,0.13294662]
[1736305730105,0.23779,96723.0,96712.0,0.01008378]
[1736305730308,0.152446,96723.0,96713.0,0.09903441]
[1736305730516,0.206778,96722.0,96714.0,0.01430304]
[1736305730898,0.206778,96722.0,96714.0,0.02438682]
[1736305731113,0.206773,96724.0,96714.0,0.02438682]
[1736305731356,0.173153,96723.0,96714.0,0.01430304]
[1736305731560,0.116063,96723.0,96714.0,0.01430304]
[1736305731713,0.373393,96723.0,96715.0,0.03540507]
[1736305731912,0.299893,96723.0,96714.0,0.01430304]
[1736305732172,0.299881,96723.0,96714.0,0.01430304]
[1736305732353,0.299881,96723.0,96716.0,0.01010348]
[1736305732754,0.234207,96723.0,96716.0,0.01010348]
[1736305732954,0.245164,96723.0,96717.0,0.01010348]
[1736305733155,0.206778,96722.0,96717.0,0.01010348]
[1736305733430,0.757046,96721.0,96717.0,0.01010348]
[1736305733635,0.757046,96721.0,96718.0,0.01010348]
[1736305734044,0.206782,96720.0,96718.0,0.01010348]
[1736305734249,1.215312,96719.0,96689.0,0.00664569]
[1736305734486,1.215312,96719.0,96690.0,0.09903441]
[1736305734487,0.1,96716.0,96690.0,0.09903441]
[1736305734687,0.20684,96693.0,96689.0,0.00664569]
[1736305734796,1.091791,96692.0,96678.0,0.1082903]
[1736305734997,0.1,96706.0,96690.0,0.01012761]
[1736305734998,0.206844,96691.0,96690.0,0.01012761]
[1736305735849,0.206878,96675.0,96674.0,0.01621517]
[1736305736073,0.121556,96675.0,96674.0,0.11524958]
[1736305736275,0.206891,96670.0,96664.0,0.00051086]
[1736305736478,0.1,96684.0,96664.0,0.00051086]
[1736305736681,0.206885,96673.0,96664.0,0.00051086]
[1736305736884,1.178459,96683.0,96664.0,0.00051086]
[1736305736885,0.206887,96671.0,96664.0,0.00051086]
[1736305737099,0.206861,96683.0,96664.0,0.00051086]
[1736305737100,0.206891,96669.0,96664.0,0.00051086]
[1736305737349,0.189449,96668.0,96664.0,0.00051086]
[1736305738425,0.206895,96667.0,96664.0,0.00051086]
[1736305738614,0.2069,96665.0,96664.0,0.00051086]
[1736305739020,0.4838,96665.0,96664.0,0.00051086]
[1736305739398,0.55192,96665.0,96664.0,0.00051086]
[1736305739524,1.75238,96665.0,96664.0,0.00051086]
[1736305739718,1.574954,96665.0,96664.0,0.00051086]
[1736305739933,1.617509,96665.0,96664.0,0.00051086]
[1736305740377,1.71654341,96665.0,96664.0,0.00051086]
[1736305740989,1.72354341,96665.0,96664.0,0.00051086]
[1736305741186,1.71654341,96665.0,96664.0,0.00051086]
[1736305741370,1.549389,96665.0,96664.0,0.00051086]
[1736305741569,1.626509,96665.0,96664.0,0.00051086]
[1736305742024,1.390053,96665.0,96664.0,0.00051086]
[1736305742212,1.308953,96665.0,96664.0,0.00051086]
[1736305742450,0.347664,96665.0,96664.0,0.00051086]
[1736305742822,0.206892,96669.0,96664.0,0.00051086]
[1736305743009,0.206895,96667.0,96664.0,0.00051086]
[1736305743232,0.188711,96666.0,96664.0,0.00051086]
[1736305743645,0.35688,96674.0,96664.0,0.00051086]
[1736305743988,0.56377,96672.0,96664.0,0.00051086]
[1736305744190,0.356889,96670.0,96664.0,0.00051086]
[1736305744392,0.001,96666.0,96664.0,0.00051086]
[1736305744632,0.192508,96665.0,96664.0,0.00051086]
[1736305744842,0.206874,96678.0,96664.0,0.00051086]
[1736305745011,0.358185,96677.0,96665.0,0.1404682]
[1736305745212,0.16812,96691.0,96665.0,0.04143379]
[1736305745213,0.266882,96676.0,96665.0,0.04143379]
[1736305745444,0.16812,96691.0,96664.0,0.00051086]
[1736305745445,0.206889,96670.0,96664.0,0.00051086]
[1736305745638,0.274747,96669.0,96664.0,0.00051086]
[1736305745854,0.206873,96678.0,96664.0,0.09954527]
[1736305746074,0.287463,96677.0,96666.0,0.206897]
[1736305746278,0.206871,96679.0,96667.0,0.09903441]
[1736305746279,0.002,96674.0,96667.0,0.09903441]
[1736305746585,0.002,96674.0,96668.0,0.03163968]
[1736305746785,0.002,96674.0,96669.0,0.09903441]
[1736305747191,0.206869,96680.0,96669.0,0.09903441]
[1736305747319,0.206858,96685.0,96669.0,0.09903441]
[1736305747530,0.206861,96683.0,96670.0,0.03174018]
[1736305747729,0.206865,96681.0,96670.0,0.13077459]
[1736305747926,0.06812,96694.0,96670.0,0.13077459]
[1736305748133,0.206862,96683.0,96671.0,0.0348131]
[1736305748332,0.206865,96681.0,96670.0,0.13077459]
[1736305748740,0.413698,96689.0,96671.0,0.09903441]
[1736305748942,0.206853,96687.0,96671.0,0.09903441]
[1736305749146,0.250245,96686.0,96672.0,0.03476181]
[1736305749351,0.0472,96695.0,96680.0,0.206867]
[1736305749352,0.206835,96695.0,96680.0,0.206867]
[1736305749571,0.206814,96705.0,96681.0,0.09903441]
[1736305749772,0.206814,96705.0,96683.0,0.206861]
[1736305749970,0.206817,96704.0,96684.0,0.09903441]
[1736305750216,0.413642,96702.0,96684.0,0.09903441]
[1736305750345,0.206825,96700.0,96684.0,0.09903441]
[1736305750545,0.202043,96699.0,96684.0,0.09903441]
[1736305750753,0.128007,96698.0,96685.0,0.03571792]
[1736305750961,0.131724,96697.0,96686.0,0.09903441]
[1736305751375,0.15,96707.0,96686.0,0.51274141]
[1736305751589,0.15,96705.0,96692.0,0.206841]
[1736305751827,0.20679,96717.0,96692.0,0.206841]
[1736305751828,0.206791,96716.0,96693.0,0.09903441]
[1736305752049,0.209259,96715.0,96693.0,0.09903441]
[1736305752241,0.206795,96714.0,96696.0,0.206833]
[1736305752487,0.002,96702.0,96697.0,0.09903441]
[1736305753103,0.00215307,96702.0,96697.0,0.09903441]
[1736305753469,0.00215307,96702.0,96694.0,0.00990344]
[1736305753470,0.206823,96701.0,96694.0,0.00990344]
[1736305753673,0.668471,96700.0,96690.0,0.09192853]
[1736305753875,0.163842,96699.0,96691.0,0.09903441]
[1736305754034,0.346414,96701.0,96691.0,0.09903441]
[1736305754238,0.222877,96700.0,96697.0,0.003]
[1736305754434,0.00015307,96702.0,96697.0,0.003]
[1736305754435,0.3259,96698.0,96697.0,0.003]
[1736305754678,1.100103,96698.0,96697.0,0.003]
[1736305754885,1.000103,96698.0,96697.0,0.003]
[1736305755089,0.312353,96698.0,96697.0,0.003]
[1736305755289,0.00015307,96702.0,96697.0,0.003]
[1736305755592,0.206826,96700.0,96681.0,0.09192853]
[1736305755790,0.00015307,96702.0,96690.0,0.002]
[1736305755791,0.206839,96694.0,96690.0,0.002]
[1736305756018,0.206839,96694.0,96682.0,0.09903441]
[1736305756019,0.236627,96693.0,96682.0,0.09903441]
[1736305756226,0.164767,96693.0,96682.0,0.09903441]
[1736305756448,0.206842,96692.0,96683.0,0.03403796]
[1736305756653,0.13477,96691.0,96683.0,0.03403796]
[1736305756850,0.206846,96690.0,96673.0,0.206882]
[1736305757061,0.157891,96689.0,96674.0,0.09903441]
[1736305757258,0.20685,96688.0,96674.0,0.09903441]
[1736305757481,0.227847,96687.0,96674.0,0.09903441]
[1736305757687,0.206868,96680.0,96674.0,0.09903441]
[1736305757887,0.206863,96683.0,96674.0,0.09903441]
[1736305758057,0.206865,96681.0,96674.0,0.09903441]
[1736305758262,0.392157,96680.0,96674.0,0.09903441]
[1736305758493,0.169991,96682.0,96674.0,0.09903441]
[1736305758686,0.206852,96688.0,96675.0,0.03978539]
[1736305758884,0.183072,96687.0,96676.0,0.30591041]
[1736305759061,0.171115,96686.0,96676.0,0.30591041]
[1736305759259,0.206842,96692.0,96677.0,0.206874]
[1736305759462,0.506503,96691.0,96678.0,0.09903441]
[1736305759677,0.02908626,96729.0,96678.0,0.09903441]
[1736305759678,0.192331,96690.0,96679.0,0.03059084]
[1736305759885,0.206814,96705.0,96679.0,0.03059084]
[1736305759886,0.206823,96701.0,96680.0,0.09903441]
[1736305760087,0.522669,96701.0,96681.0,0.03384993]
[1736305760288,0.170956,96700.0,96682.0,0.09903441]
[1736305760516,0.170956,96701.0,96682.0,0.10006865]
[1736305760717,0.377779,96701.0,96685.0,0.206856]
[1736305760951,0.170956,96700.0,96686.0,0.13311186]
[1736305761302,0.206827,96699.0,96686.0,0.13311186]
[1736305761500,0.206831,96697.0,96686.0,0.13311186]
[1736305761732,0.206835,96695.0,96686.0,0.09903441]
[1736305761966,0.15,96714.0,96678.0,0.09242719]
[1736305761967,0.206851,96688.0,96678.0,0.09242719]
[1736305762181,0.206823,96701.0,96678.0,0.1914616]
[1736305762182,0.498148,96687.0,96678.0,0.1914616]
[1736305762382,0.15,96700.0,96679.0,0.09903441]
[1736305762618,0.206844,96692.0,96679.0,0.09903441]
[1736305762840,0.224513,96691.0,96679.0,0.09903441]
[1736305763041,0.224513,96691.0,96680.0,0.206868]
[1736305763241,0.003,96697.0,96682.0,0.206863]
[1736305763242,0.28922,96695.0,96682.0,0.206863]
[1736305763457,0.206826,96700.0,96683.0,0.09903441]
[1736305763660,0.274923,96711.0,96690.0,0.206844]
[1736305763866,0.231241,96701.0,96691.0,0.11971881]
[1736305764064,0.231241,96701.0,96691.0,0.09903441]
[1736305764260,0.15,96705.0,96691.0,0.09903441]
[1736305764971,0.15,96705.0,96692.0,0.206842]
[1736305765334,0.15,96705.0,96693.0,0.09903441]
[1736305765547,0.00315307,96702.0,96693.0,0.09903441]
[1736305765877,0.00015307,96702.0,96695.0,0.206835]
[1736305766160,0.00015307,96702.0,96697.0,0.206831]
[1736305766352,0.00015307,96702.0,96698.0,0.09903441]
[1736305767709,0.00015307,96702.0,96694.0,0.03058764]
[1736305767710,0.39773,96701.0,96694.0,0.03058764]
[1736305767918,0.39773,96701.0,96693.0,0.002]
[1736305767919,0.206835,96695.0,96693.0,0.002]
[1736305768125,0.206835,96695.0,96689.0,0.09242719]
[1736305768126,0.15,96692.0,96689.0,0.09242719]
[1736305768337,0.15,96690.0,96689.0,0.09242719]
[1736305768543,2.040405,96690.0,96689.0,0.09242719]
[1736305768959,2.005613,96690.0,96689.0,0.09242719]
[1736305769169,0.206885,96672.0,96658.0,0.09242719]
[1736305769375,1.012043,96671.0,96659.0,0.09903441]
[1736305769580,0.25,96690.0,96659.0,0.09903441]
[1736305769581,0.301745,96670.0,96659.0,0.09903441]
[1736305769756,0.206876,96677.0,96660.0,0.45174191]
[1736305770016,0.206878,96675.0,96661.0,0.09903441]
[1736305770230,0.206867,96681.0,96662.0,0.05749343]
[1736305770405,0.15,96680.0,96663.0,0.30593841]
[1736305770627,0.15,96680.0,96665.0,0.2069]
[1736305770830,0.15,96680.0,96667.0,0.206895]
[1736305771004,0.242942,96679.0,96668.0,0.09903441]
[1736305771532,0.115816,96679.0,96668.0,0.09903441]
[1736305771738,0.136532,96679.0,96669.0,0.05440415]
[1736305771934,0.136532,96679.0,96670.0,0.09903441]
[1736305772354,0.15,96680.0,96670.0,0.09903441]
[1736305772563,0.15,96685.0,96671.0,0.206887]
[1736305772765,0.001,96679.0,96672.0,0.15575647]
[1736305773108,0.15,96683.0,96672.0,0.15575647]
[1736305773350,0.206868,96680.0,96672.0,0.15575647]
[1736305773581,0.217965,96679.0,96672.0,0.15575647]
[1736305773733,0.206872,96678.0,96673.0,0.03646515]
[1736305773949,0.206872,96678.0,96670.0,0.002]
[1736305773950,0.206872,96678.0,96674.0,0.09903441]
[1736305774150,0.206872,96678.0,96670.0,0.002]
[1736305774151,0.206876,96676.0,96670.0,0.002]
[1736305774435,0.251864,96675.0,96670.0,0.002]
[1736305775454,0.41376,96674.0,96670.0,0.002]
[1736305775662,0.206885,96672.0,96670.0,0.002]
[1736305775879,0.206889,96670.0,96662.0,0.00051086]
[1736305776091,0.206893,96668.0,96662.0,0.00051086]
[1736305776294,0.206897,96666.0,96662.0,0.00051086]
[1736305776498,0.170619,96665.0,96663.0,0.09903441]
[1736305776682,0.206885,96673.0,96670.0,0.002]
[1736305776683,0.206887,96671.0,96670.0,0.002]
[1736305776887,0.578024,96671.0,96670.0,0.002]
[1736305777101,0.206868,96680.0,96670.0,0.10103441]
[1736305777299,0.206868,96680.0,96671.0,0.1101333]
[1736305778102,0.413692,96690.0,96672.0,0.206885]
[1736305778315,0.0498,96706.0,96674.0,0.09903441]
[1736305778521,0.284782,96705.0,96675.0,0.0010342]
[1736305778726,0.311886,96704.0,96685.0,0.206856]
[1736305778896,0.311886,96704.0,96693.0,0.206839]
[1736305779098,0.06812,96705.0,96694.0,0.09903441]
[1736305779099,0.407626,96703.0,96694.0,0.09903441]
[1736305779300,0.377352,96702.0,96694.0,0.09903441]
[1736305779646,0.206749,96736.0,96694.0,0.09903441]
[1736305779647,0.206787,96718.0,96696.0,0.0774]
[1736305779873,0.206797,96713.0,96697.0,0.09903441]
[1736305780073,0.206799,96712.0,96698.0,0.03832784]
[1736305780299,0.206799,96712.0,96699.0,0.09903441]
[1736305780910,0.206795,96714.0,96700.0,0.206825]
[1736305781119,0.138882,96713.0,96701.0,0.09903441]
[1736305781328,0.206795,96714.0,96702.0,0.05160214]
[1736305781535,0.206799,96712.0,96703.0,0.09903441]
[1736305782425,0.206803,96710.0,96703.0,0.09903441]
[1736305782632,0.104059,96709.0,96704.0,0.02833916]
[1736305782833,0.206803,96710.0,96705.0,0.09903441]
[1736305783040,0.11271,96709.0,96705.0,0.09903441]
[1736305783497,0.11271,96709.0,96698.0,0.03832784]
[1736305783727,0.20681,96707.0,96703.0,0.001]
[1736305783927,0.206825,96700.0,96699.0,0.09903441]
[1736305784140,0.325053,96700.0,96699.0,0.09903441]
[1736305784354,0.531879,96700.0,96695.0,0.09242719]
[1736305784559,0.06812,96705.0,96684.0,0.09242719]
[1736305784792,0.206857,96686.0,96684.0,0.09242719]
[1736305785014,0.469297,96685.0,96684.0,0.09242719]
[1736305785218,0.469297,96685.0,96672.0,0.09242719]
[1736305785396,0.206878,96676.0,96672.0,0.09242719]
[1736305785653,0.20688,96674.0,96672.0,0.09242719]
[1736305785881,0.206878,96676.0,96672.0,0.09242719]
[1736305786158,0.150284,96675.0,96672.0,0.00051086]
[1736305786364,0.150284,96675.0,96672.0,0.01469781]
[1736305786570,0.274989,96680.0,96672.0,0.01469781]
[1736305786571,0.206869,96680.0,96672.0,0.01469781]
[1736305786772,0.160114,96679.0,96672.0,0.01269781]
[1736305786956,0.160114,96679.0,96672.0,0.01369781]
[1736305787128,0.206872,96678.0,96673.0,0.01127322]
[1736305787331,0.206855,96687.0,96674.0,0.09903441]
[1736305787535,0.206857,96685.0,96674.0,0.09903441]
[1736305788307,0.206844,96692.0,96674.0,0.09903441]
[1736305788506,0.15,96690.0,96674.0,0.09903441]
[1736305788867,0.20683,96698.0,96679.0,0.206868]
[1736305789021,0.20683,96698.0,96680.0,0.09903441]
[1736305789228,0.206835,96695.0,96680.0,0.09903441]
[1736305789429,0.331035,96694.0,96680.0,0.09903441]
[1736305789853,0.274375,96694.0,96680.0,0.09903441]
[1736305790067,0.138125,96694.0,96681.0,0.06294646]
[1736305790265,0.198441,96694.0,96682.0,0.09903441]
[1736305790467,0.392288,96693.0,96682.0,0.09903441]
[1736305790675,0.15,96698.0,96683.0,0.206861]
[1736305790879,0.06672,96711.0,96684.0,0.09903441]
[1736305791129,0.206821,96702.0,96684.0,0.09903441]
[1736305791328,0.206833,96697.0,96684.0,0.09903441]
[1736305791491,0.206825,96700.0,96685.0,0.24958263]
[1736305791693,0.206829,96698.0,96686.0,0.09903441]
[1736305791870,0.206825,96700.0,96686.0,0.1221256]
[1736305792306,0.206817,96704.0,96687.0,0.206853]
[1736305792655,0.183299,96703.0,96689.0,0.206848]
[1736305792806,0.20401,96704.0,96690.0,0.10006851]
[1736305792981,0.20401,96704.0,96691.0,0.24411743]
[1736305793183,0.20401,96704.0,96692.0,0.09903441]
[1736305793384,0.206802,96711.0,96694.0,0.206838]
[1736305793654,0.15021,96710.0,96695.0,0.09903441]
[1736305793859,0.15021,96710.0,96696.0,0.03431458]
[1736305794061,0.206812,96706.0,96697.0,0.09903441]
[1736305794234,0.364389,96705.0,96697.0,0.09903441]
[1736305794475,0.173919,96704.0,96697.0,0.09903441]
[1736305794681,0.173919,96704.0,96698.0,0.01706224]
[1736305794913,0.193271,96703.0,96699.0,0.09903441]
[1736305795113,0.113661,96703.0,96699.0,0.09903441]
[1736305795315,0.124359,96702.0,96699.0,0.09903441]
[1736305795523,0.183416,96703.0,96700.0,0.0133349]
[1736305795733,0.207301,96702.0,96701.0,0.09903441]
[1736305796137,0.235847,96702.0,96701.0,0.09903441]
[1736305796344,0.26692,96703.0,96701.0,0.09903441]
[1736305796854,0.235857,96703.0,96701.0,0.09903441]
[1736305797060,0.206816,96704.0,96701.0,0.09903441]
[1736305797270,0.206797,96714.0,96702.0,0.0135349]
[1736305797478,0.206808,96709.0,96703.0,0.09903441]
[1736305797684,0.206797,96714.0,96703.0,0.09903441]
[1736305798645,0.0001531,96714.0,96703.0,0.09903441]
[1736305798846,0.13813,96713.0,96703.0,0.09903441]
[1736305799046,0.206799,96712.0,96704.0,0.03068944]
[1736305799237,0.208696,96711.0,96705.0,0.09903441]
[1736305799418,0.144314,96710.0,96705.0,0.09903441]
[1736305799738,0.144314,96711.0,96705.0,0.09903441]
[1736305799938,0.112687,96710.0,96706.0,0.03365499]
[1736305800166,0.206803,96710.0,96707.0,0.09903441]
[1736305800345,0.206799,96712.0,96707.0,0.09903441]
[1736305800554,0.206803,96710.0,96707.0,0.09903441]
[1736305800949,0.206818,96704.0,96703.0,0.002]
[1736305801152,0.510167,96704.0,96703.0,0.002]
[1736305801376,0.206829,96698.0,96697.0,0.09242719]
[1736305801941,0.206829,96698.0,96691.0,0.03727343]
[1736305802149,0.206818,96703.0,96692.0,0.09903441]
[1736305802359,0.206814,96706.0,96692.0,0.09903441]
[1736305802566,0.206814,96706.0,96693.0,0.0575257]
[1736305802736,0.206814,96706.0,96694.0,0.30587241]
[1736305802938,0.268051,96705.0,96694.0,0.09903441]
[1736305803233,0.206814,96706.0,96694.0,0.09903441]
[1736305803434,0.206814,96706.0,96697.0,0.001]
[1736305803659,0.0001531,96714.0,96697.0,0.001]
[1736305803660,0.206827,96699.0,96697.0,0.001]
[1736305803906,1.940405,96698.0,96697.0,0.001]
[1736305804112,2.13324567,96698.0,96697.0,0.001]
[1736305804598,0.1,96692.0,96665.0,0.09242719]
[1736305804828,0.206891,96669.0,96666.0,0.14062665]
[1736305805184,0.206882,96674.0,96654.0,0.09242719]
[1736305805185,0.206895,96667.0,96654.0,0.09242719]
[1736305805402,0.185512,96666.0,96655.0,0.09903441]
[1736305805574,0.06672,96674.0,96655.0,0.10925004]
[1736305805575,0.206906,96662.0,96655.0,0.10925004]
[1736305806099,0.206919,96656.0,96655.0,0.01072649]
[1736305806667,0.206919,96656.0,96655.0,0.00051086]
[1736305807049,0.206908,96661.0,96655.0,0.12270315]
[1736305807254,0.212092,96660.0,96656.0,0.09903441]
[1736305807474,0.206887,96672.0,96657.0,0.206917]
[1736305807694,0.206889,96671.0,96658.0,0.10006888]
[1736305807866,0.206889,96671.0,96659.0,0.01452507]
[1736305808067,0.002,96662.0,96660.0,0.09903441]
[1736305808486,0.206878,96675.0,96661.0,0.206908]
[1736305808686,0.206878,96675.0,96662.0,0.09903441]
[1736305808824,0.206882,96673.0,96663.0,0.03224725]
[1736305809031,0.206882,96673.0,96664.0,0.09903441]
[1736305809234,0.20687,96679.0,96664.0,0.30593641]
[1736305809446,0.206874,96677.0,96664.0,0.30593641]
[1736305809644,0.438087,96676.0,96665.0,0.05606217]
[1736305809816,1.319715,96683.0,96666.0,0.09903441]
[1736305810023,0.20688,96674.0,96666.0,0.09903441]
[1736305810225,0.20688,96674.0,96667.0,0.00990344]
[1736305810423,0.41376,96674.0,96668.0,0.09903441]
[1736305812005,0.20688,96674.0,96668.0,0.09903441]
[1736305812418,0.20888,96674.0,96668.0,0.09903441]
[1736305812622,0.206868,96680.0,96669.0,0.01089379]
[1736305812846,0.206872,96678.0,96670.0,0.09903441]
[1736305813077,0.002,96674.0,96670.0,0.09903441]
[1736305814025,0.206872,96678.0,96670.0,0.09903441]
[1736305814226,0.206876,96676.0,96670.0,0.13071733]
[1736305814460,0.20688,96674.0,96670.0,0.09903441]
[1736305814657,0.413762,96674.0,96670.0,0.09903441]
[1736305814876,0.349585,96673.0,96670.0,0.09903441]
[1736305815548,0.206885,96672.0,96670.0,0.09903441]
[1736305815955,0.227789,96671.0,96670.0,0.09903441]
[1736305816573,0.206885,96672.0,96670.0,0.11002723]
[1736305817752,0.208885,96672.0,96670.0,0.09903441]
[1736305818159,0.003,96671.0,96670.0,0.09903441]
[1736305818570,0.002,96672.0,96670.0,0.09903441]
[1736305818784,0.002,96672.0,96671.0,0.206887]
[1736305818998,0.003,96672.0,96671.0,0.30592141]
[1736305819209,0.003,96672.0,96671.0,0.36530345]
[1736305819411,0.206838,96694.0,96679.0,0.206868]
[1736305819618,0.0766,96707.0,96680.0,0.09903441]
[1736305819619,0.206836,96695.0,96680.0,0.09903441]
[1736305819821,0.206822,96702.0,96681.0,0.00103424]
[1736305820069,0.206832,96697.0,96682.0,0.09903441]
[1736305820282,0.0456,96714.0,96682.0,0.09903441]
[1736305820283,0.15,96709.0,96682.0,0.09903441]
[1736305820533,0.206821,96702.0,96683.0,0.00103418]
[1736305820771,0.206821,96702.0,96684.0,0.13897109]
[1736305820974,0.206821,96702.0,96684.0,0.09903441]
[1736305820975,0.206833,96697.0,96684.0,0.09903441]
[1736305821386,0.001,96694.0,96684.0,0.09903441]
[1736305821820,0.20684,96693.0,96684.0,0.09903441]
[1736305822020,0.20684,96693.0,96684.0,0.10154527]
[1736305822201,0.41368,96693.0,96684.0,0.11904594]
[1736305822402,0.20684,96693.0,96684.0,0.11904594]
[1736305822948,0.20784,96693.0,96684.0,0.11904594]
[1736305823629,0.206855,96686.0,96684.0,0.11904594]
[1736305823850,0.206855,96686.0,96684.0,0.00051086]
[1736305824052,0.206855,96686.0,96684.0,0.00251086]
[1736305824366,0.023,96685.0,96684.0,0.00051086]
[1736305824681,0.23808,96685.0,96684.0,0.00251086]
[1736305824950,0.28648,96685.0,96684.0,0.00051086]
[1736305825320,0.28648,96685.0,96684.0,0.00251086]
[1736305825683,0.28648,96685.0,96684.0,0.00051086]
[1736305825891,0.2274,96685.0,96684.0,0.00051086]
[1736305826091,0.29248,96685.0,96684.0,0.00051086]
[1736305826445,0.28948,96685.0,96684.0,0.00051086]
[1736305826860,0.2244,96685.0,96684.0,0.00051086]
[1736305827061,0.173,96685.0,96684.0,0.00051086]
[1736305827365,0.007,96685.0,96684.0,0.00151086]
[1736305827582,0.007,96685.0,96684.0,0.10054527]
[1736305827733,0.007,96685.0,96684.0,0.1095998]
[1736305827939,0.01,96685.0,96684.0,0.1095998]
[1736305828137,0.003,96685.0,96684.0,0.1095998]
[1736305828350,0.003,96685.0,96684.0,0.01056539]
[1736305828546,0.008,96685.0,96684.0,0.00151086]
[1736305828764,0.2996,96685.0,96684.0,0.00051086]
[1736305828959,0.35968,96685.0,96684.0,0.00051086]
[1736305829233,0.45871441,96685.0,96684.0,0.00051086]
[1736305829438,0.46071441,96685.0,96684.0,0.00051086]
[1736305829788,0.15,96672.0,96665.0,0.08193805]
[1736305830046,0.206897,96666.0,96644.0,0.08193805]
[1736305830271,0.206917,96657.0,96656.0,0.00015322]
[1736305831337,0.206915,96658.0,96656.0,0.09918763]
[1736305831662,0.206915,96658.0,96657.0,0.10895317]
[1736305832382,0.206904,96663.0,96657.0,0.10895317]
[1736305832816,0.002,96658.0,96657.0,0.10895317]
[1736305833547,0.002,96658.0,96657.0,0.09903441]
[1736305833896,0.206917,96657.0,96656.0,0.00015322]
[1736305834526,0.356917,96657.0,96656.0,0.00015322]
[1736305834729,0.582617,96657.0,96656.0,0.00015322]
[1736305835629,0.609617,96657.0,96656.0,0.00015322]
[1736305835813,0.607617,96657.0,96656.0,0.00015322]
[1736305835944,1.13153918,96657.0,96656.0,0.00015322]
[1736305836558,1.13153918,96657.0,96656.0,0.00115322]
[1736305836559,1.13853918,96657.0,96656.0,0.00115322]
[1736305836765,1.129917,96657.0,96656.0,0.00115322]
[1736305836976,1.122917,96657.0,96656.0,0.00015322]
[1736305837388,1.126917,96657.0,96656.0,0.00015322]
[1736305838011,1.122917,96657.0,96656.0,0.00015322]
[1736305838293,1.129917,96657.0,96656.0,0.00115322]
[1736305838851,1.122917,96657.0,96656.0,0.00015322]
[1736305839052,1.136917,96657.0,96656.0,0.00215322]
[1736305839675,1.136917,96657.0,96628.0,8.54e-05]
[1736305839676,0.206977,96629.0,96628.0,8.54e-05]
[1736305839877,0.897277,96629.0,96628.0,8.54e-05]
[1736305840318,0.874277,96629.0,96628.0,8.54e-05]
[1736305841058,0.897277,96629.0,96628.0,8.54e-05]
[1736305841269,0.943877,96629.0,96628.0,8.54e-05]
[1736305841686,0.946877,96629.0,96628.0,8.54e-05]
[1736305842961,0.965397,96629.0,96628.0,8.54e-05]
[1736305843217,0.97434764,96629.0,96628.0,0.0010854]
[1736305843417,0.90922764,96629.0,96628.0,0.0010854]
[1736305843592,0.97434764,96629.0,96628.0,0.0010854]
[1736305843831,0.95134764,96629.0,96628.0,0.0010854]
[1736305844213,0.94834764,96629.0,96628.0,0.0010854]
[1736305844420,0.95334764,96629.0,96628.0,0.0020854]
[1736305844560,0.88822764,96629.0,96628.0,0.0020854]
[1736305844960,0.88322764,96629.0,96628.0,0.0010854]
[1736305845364,0.88822764,96629.0,96628.0,0.0020854]
[1736305845618,0.91122764,96629.0,96628.0,0.0020854]
[1736305847145,0.88822764,96629.0,96628.0,0.0020854]
[1736305847373,0.73822764,96629.0,96628.0,0.0020854]
[1736305847711,0.5313,96629.0,96628.0,0.10111981]
[1736305847907,0.5223,96629.0,96628.0,0.1102574]
[1736305848132,0.5263,96629.0,96628.0,0.1102574]
[1736305848380,0.5263,96629.0,96628.0,0.10011981]
[1736305848591,0.5293,96629.0,96628.0,0.09911981]
[1736305848712,0.5333,96629.0,96628.0,0.09911981]
[1736305849075,0.51232303,96629.0,96628.0,0.09911981]
[1736305849419,0.51932303,96629.0,96628.0,0.09911981]
[1736305849633,0.51932303,96629.0,96628.0,0.1504544]
[1736305850015,0.51632303,96629.0,96628.0,0.1504544]
[1736305850253,0.51632303,96629.0,96628.0,0.2429664]
[1736305850461,0.10101716,96629.0,96628.0,0.2429664]
[1736305850931,0.10201716,96629.0,96628.0,0.2429664]
[1736305851132,0.09701716,96629.0,96628.0,0.2429664]
[1736305851692,0.09901716,96629.0,96628.0,0.2429664]
[1736305851900,0.09901716,96629.0,96628.0,0.1504544]
[1736305852085,0.09901716,96629.0,96628.0,0.1534544]
[1736305852285,0.09701716,96629.0,96628.0,0.1534544]
[1736305852530,0.09801716,96629.0,96628.0,0.1534544]
[1736305853090,0.09701716,96629.0,96628.0,0.1534544]
[1736305853416,0.09801716,96629.0,96628.0,0.1534544]
[1736305853832,0.09801716,96629.0,96628.0,0.2362544]
[1736305854035,0.09801716,96629.0,96628.0,0.24642104]
[1736305854240,0.09801716,96629.0,96628.0,0.34642104]
[1736305854581,0.09801716,96629.0,96628.0,0.24342104]
[1736305854731,0.09801716,96629.0,96628.0,0.24642104]
[1736305854933,0.09801716,96629.0,96628.0,0.38506183]
[1736305855138,0.09701716,96629.0,96628.0,0.19806882]
[1736305855385,0.09801716,96629.0,96628.0,0.10203441]
[1736305855592,0.09801716,96629.0,96628.0,0.09903441]
[1736305856009,0.09701716,96629.0,96628.0,0.09903441]
[1736305856411,0.09801716,96629.0,96628.0,0.14899202]
[1736305857033,0.09801716,96629.0,96628.0,0.15099202]
[1736305857233,0.09801716,96629.0,96628.0,0.14899202]
[1736305857408,0.09801716,96629.0,96628.0,0.09903441]
[1736305857615,0.09801716,96629.0,96628.0,0.10103441]